bitfinex-derivatives/quotes_ETHF0:USTF0_20250205
["timestamp","ask_amount","ask_price","bid_price","bid_amount"]
[1738774958323,0.0054021,2776.3,2776.1,3.2078]
[1738774958911,0.0054021,2776.3,2776.2,40.8]
[1738774959118,0.0054021,2776.3,2776.1,3.2078]
[1738774959425,0.0054021,2776.3,2775.8,3.2078]
[1738774960117,3.2132021,2776.3,2775.8,3.2078]
[1738774960426,0.0054021,2776.3,2775.8,3.2078]
[1738774961316,0.0054021,2776.3,2775.1,0.5469]
[1738774961317,0.0054021,2776.3,2776.1,3.2078]
[1738774964016,0.0054021,2776.3,2776.2,0.5331]
[1738774965421,0.5343,2777.3,2776.2,5.5331]
[1738774965623,0.5343,2777.3,2776.8,3.2078]
[1738774966021,0.5343,2777.3,2776.5,3.2078]
[1738774966718,0.0054021,2777.2,2776.5,3.2078]
[1738774966924,3.2132021,2777.2,2776.5,3.2078]
[1738774967123,1.2703,2777.1,2776.5,3.2078]
[1738774967319,0.5503,2777.1,2776.5,3.2078]
[1738774967822,4.19968926,2777.0,2776.5,3.2078]
[1738774968021,4.19968926,2776.6,2776.0,0.0054021]
[1738774968222,3.2078,2776.4,2776.0,0.0054021]
[1738774968422,0.564,2776.3,2776.0,0.0054021]
[1738774969122,0.564,2776.3,2774.5,4.19968926]
[1738774969123,0.72029,2776.0,2775.0,3.2078]
[1738774969322,3.2078,2775.6,2775.0,3.2078]
[1738774969621,0.564,2775.5,2775.0,3.2078]
[1738774969820,0.564,2775.5,2774.6,0.5536]
[1738774969821,0.564,2775.5,2774.6,3.7614]
[1738774970224,0.0054021,2775.3,2774.6,3.7614]
[1738774970728,0.0054021,2775.3,2774.9,3.2078]
[1738774972421,0.0054021,2775.3,2775.2,3.2078]
[1738774972624,3.2078,2776.2,2775.2,3.2078]
[1738774972928,3.2078,2776.2,2775.6,3.2078]
[1738774973322,0.5527,2776.3,2775.6,3.2078]
[1738774973828,0.0054021,2776.2,2775.9,3.2078]
[1738774974335,4.19968926,2777.4,2775.9,3.2078]
[1738774974529,3.2078,2777.5,2776.9,3.2078]
[1738774974720,1.1023,2777.9,2777.2,3.2078]
[1738774975125,1.1023,2777.9,2776.7,3.2078]
[1738774975524,1.1023,2777.9,2777.0,3.2078]
[1738774975726,0.0054021,2777.6,2777.0,3.2132021]
[1738774979734,0.0054021,2777.6,2777.1,3.2078]
[1738774980433,3.2078,2777.3,2777.0,0.0054021]
[1738774980638,0.5494,2777.2,2777.0,0.0054021]
[1738774981736,0.0054021,2777.6,2777.1,3.2078]
[1738774982330,0.0054021,2777.6,2777.0,0.0054021]
[1738774982532,0.0054021,2777.6,2777.1,3.2078]
[1738774982833,0.0054021,2777.6,2777.4,3.2078]
[1738774983040,0.0054021,2777.6,2777.1,3.2078]
[1738774983440,0.0054021,2777.6,2777.4,3.2078]
[1738774986234,0.0054021,2777.6,2777.3,3.2078]
[1738774987440,3.2078,2778.8,2777.4,4.65724007]
[1738774987739,3.2078,2778.8,2777.7,3.2078]
[1738774988448,3.2078,2778.5,2777.7,3.2078]
[1738774988740,3.2132021,2778.5,2777.7,3.2078]
[1738774989534,3.92756,2778.0,2777.4,3.2078]
[1738774989743,1.1119,2777.9,2777.4,3.2078]
[1738774990136,4.19968926,2777.8,2777.4,3.2078]
[1738774990538,0.5414,2777.9,2777.4,3.2078]
[1738774990842,0.5705,2778.4,2777.7,3.2078]
[1738774992435,0.0054021,2778.5,2777.2,0.5449]
[1738774992436,0.0054021,2778.5,2778.0,3.2078]
[1738774992747,0.0054021,2778.5,2778.3,3.2078]
[1738774995245,0.0054021,2778.5,2777.4,0.9276]
[1738774995246,0.0054021,2778.5,2777.9,3.2078]
[1738774995551,0.0054021,2778.5,2778.2,3.2078]
[1738774999436,0.0499,2778.9,2778.3,5.82956762]
[1738774999639,0.0499,2778.9,2778.8,3.2078]
[1738774999840,3.2078,2779.7,2778.8,3.2078]
[1738774999841,0.71938,2779.5,2778.8,3.2078]
[1738775000044,3.2078,2779.3,2778.8,3.2078]
[1738775000247,3.2078,2779.3,2778.4,3.2078]
[1738775000549,4.76648926,2779.4,2778.4,3.2078]
[1738775000742,0.0054021,2779.1,2778.6,0.0054021]
[1738775001137,3.2078,2778.9,2778.6,0.0054021]
[1738775001343,0.571,2778.8,2778.6,0.0054021]
[1738775002044,0.0054021,2779.1,2778.6,0.0054021]
[1738775002247,0.0054021,2779.1,2779.0,3.2078]
[1738775002454,0.0054021,2779.1,2778.7,3.2078]
[1738775003646,0.0054021,2779.1,2779.0,3.2078]
[1738775008454,0.0054021,2779.1,2779.0,8.2078]
[1738775008755,0.2187,2779.6,2779.0,3.2078]
[1738775008950,0.2187,2779.6,2779.3,3.2078]
[1738775009150,0.71922,2780.1,2779.3,3.2078]
[1738775009350,4.78318926,2780.2,2779.3,3.2078]
[1738775009851,0.0054021,2779.9,2779.3,3.2078]
[1738775010057,0.0054021,2779.9,2779.6,3.2078]
[1738775011151,0.0054021,2779.9,2779.3,3.2078]
[1738775014256,0.0054021,2779.9,2778.8,1.28595]
[1738775014257,0.0054021,2779.9,2779.6,3.2078]
[1738775016556,3.2078,2781.2,2779.7,9.52280235]
[1738775016756,3.2078,2781.2,2780.5,3.2078]
[1738775016951,3.2078,2781.2,2779.8,41.3579]
[1738775016952,3.2078,2780.9,2780.2,3.2078]
[1738775017152,0.5675,2780.8,2780.2,3.2078]
[1738775017353,6.4829,2780.8,2779.6,3.2078]
[1738775017553,2.31008,2780.7,2779.6,3.2078]
[1738775017755,0.0034414,2780.5,2779.9,0.0054021]
[1738775018265,3.2112414,2780.5,2779.9,3.2132021]
[1738775019762,3.2112414,2780.5,2779.9,0.0054021]
[1738775020953,3.2112414,2780.5,2779.9,3.2132021]
[1738775021359,0.0034414,2780.5,2779.9,3.2132021]
[1738775022467,0.0034414,2780.5,2779.9,0.0054021]
[1738775022865,3.2112414,2780.5,2779.9,0.0054021]
[1738775023665,3.9303714,2780.5,2779.9,0.0054021]
[1738775023862,3.2078,2780.1,2779.9,0.0054021]
[1738775024065,0.5864,2780.0,2779.9,0.0054021]
[1738775024568,3.2078,2780.4,2779.9,0.0054021]
[1738775024959,3.2078,2780.0,2779.9,0.0054021]
[1738775025267,3.82648018,2780.2,2779.9,0.0054021]
[1738775025662,3.2078,2780.4,2779.9,0.0054021]
[1738775026567,0.0034414,2780.5,2779.9,0.0054021]
[1738775026960,0.0034414,2780.5,2779.9,3.2132021]
[1738775027965,0.0034414,2780.5,2780.2,3.2078]
[1738775029867,4.7978,2781.5,2780.2,7.03428018]
[1738775030063,0.5569,2781.4,2780.8,3.2078]
[1738775031667,3.82648018,2781.1,2780.8,3.2078]
[1738775031864,0.5339,2781.0,2780.8,3.2078]
[1738775032268,0.5339,2781.0,2780.4,3.2078]
[1738775033065,3.82648018,2780.8,2780.4,3.2078]
[1738775033271,0.5339,2781.0,2780.4,3.2078]
[1738775033771,0.0122,2781.1,2780.4,3.2078]
[1738775039975,3.22,2781.1,2780.4,3.2078]
[1738775040271,0.0122,2781.1,2780.4,3.2078]
[1738775040778,0.719,2781.0,2780.4,3.2078]
[1738775040974,3.2078,2780.9,2780.1,3.2078]
[1738775041176,3.2078,2780.3,2779.9,0.0054021]
[1738775041477,3.2078,2780.6,2779.9,0.0054021]
[1738775041778,4.346,2780.6,2779.9,0.0054021]
[1738775043671,0.5842,2780.6,2780.1,3.2078]
[1738775046181,0.5842,2780.6,2779.9,0.0054021]
[1738775046380,1.1648,2780.6,2779.9,0.0054021]
[1738775046875,3.82648018,2780.3,2779.9,0.0054021]
[1738775047079,4.54564018,2780.3,2779.9,0.0054021]
[1738775047283,3.82648018,2780.3,2779.8,3.2078]
[1738775047881,4.54566018,2780.3,2779.8,3.2078]
[1738775048385,3.82648018,2779.9,2779.6,3.2078]
[1738775048578,3.2078,2779.7,2779.1,3.2078]
[1738775049576,3.2078,2779.7,2779.1,3.2132021]
[1738775049780,7.03428018,2779.5,2778.3,3.2078]
[1738775050082,1.79805,2780.1,2779.4,3.2078]
[1738775050083,0.27691743,2780.1,2779.4,3.2078]
[1738775050384,3.2078,2780.2,2779.4,3.2078]
[1738775050683,3.2078,2779.8,2778.8,1.1373]
[1738775050874,3.82648018,2779.9,2779.0,3.2078]
[1738775051077,0.0054021,2779.6,2779.0,3.2132021]
[1738775051685,3.2078,2780.9,2779.3,7.03428018]
[1738775051986,0.5543,2781.2,2780.8,3.2078]
[1738775052184,3.82648018,2781.1,2780.5,3.2078]
[1738775052788,3.83187247,2781.1,2780.5,3.21319229]
[1738775053088,3.82648018,2780.7,2780.5,0.00539229]
[1738775053290,3.82648018,2780.7,2778.9,4.18648018]
[1738775053291,3.2078,2780.6,2779.6,3.2078]
[1738775053482,3.82648018,2780.2,2779.6,3.2078]
[1738775054387,3.82648018,2780.2,2779.6,3.21319229]
[1738775054985,4.35998018,2780.6,2779.6,3.21319229]
[1738775055292,4.35998018,2780.6,2779.9,3.2078]
[1738775055293,3.82648018,2780.6,2779.9,3.2078]
[1738775056396,0.5781,2780.5,2779.9,3.2078]
[1738775056583,3.82648018,2780.2,2779.9,3.2078]
[1738775057697,0.5781,2780.5,2779.9,3.2078]
[1738775057990,3.82648018,2780.2,2779.9,3.2078]
[1738775058791,3.2078,2780.1,2779.6,0.00539229]
[1738775058991,3.7408,2780.1,2779.6,0.00539229]
[1738775059289,3.82648018,2779.8,2779.6,0.00539229]
[1738775059595,0.5432,2779.7,2779.6,0.00539229]
[1738775061287,3.82648018,2779.8,2779.6,0.00539229]
[1738775061486,0.533,2780.1,2779.6,0.00539229]
[1738775062497,3.82648018,2780.2,2779.8,3.2078]
[1738775062695,7.03428018,2780.6,2779.8,3.2078]
[1738775062994,7.03428018,2780.6,2780.1,3.2078]
[1738775062995,3.82648018,2780.6,2780.1,3.2078]
[1738775063189,3.82648018,2780.6,2779.7,3.7954]
[1738775063389,3.82648018,2780.6,2780.2,3.2078]
[1738775063590,3.82648018,2780.6,2779.9,3.2078]
[1738775063891,3.82648018,2780.6,2779.8,0.5646]
[1738775064595,3.82648018,2780.6,2779.8,3.7724]
[1738775065189,3.82648018,2780.6,2780.1,3.2078]
[1738775065395,3.2078,2780.9,2780.1,3.2078]
[1738775065793,4.38108018,2781.0,2780.4,3.2078]
[1738775065993,4.38108018,2781.0,2780.8,3.2078]
[1738775066192,4.38108018,2781.0,2780.4,3.2078]
[1738775067100,4.38108018,2781.0,2780.8,3.2078]
[1738775067496,0.00539229,2781.1,2780.8,3.2078]
[1738775069195,0.00539229,2781.1,2780.9,1.1322]
[1738775070105,4.40138018,2782.3,2781.0,4.68909933]
[1738775070402,4.40138018,2782.3,2781.8,3.2078]
[1738775070902,3.82648018,2782.0,2781.8,3.2078]
[1738775073801,7.03428018,2782.0,2781.6,0.00539229]
[1738775073999,0.5496,2781.9,2781.6,0.00539229]
[1738775074301,3.82648018,2781.7,2781.6,0.00539229]
[1738775074502,7.03428018,2781.7,2780.9,3.2078]
[1738775074804,3.82648018,2781.0,2780.9,3.2078]
[1738775075002,1.587,2781.6,2780.9,3.2078]
[1738775075003,3.82648018,2781.3,2780.9,3.2078]
[1738775077405,3.82648018,2781.0,2780.9,3.2078]
[1738775078909,3.82648018,2781.0,2780.8,0.00539229]
[1738775079613,1.1234,2781.2,2780.8,3.21319229]
[1738775080504,1.1234,2781.2,2780.8,0.00539229]
[1738775080703,3.82648018,2781.0,2780.8,0.00539229]
[1738775080903,7.03428018,2781.0,2780.8,0.00539229]
[1738775081105,0.5701,2780.9,2779.7,3.2078]
[1738775081408,3.82648018,2780.4,2779.7,3.2078]
[1738775081609,0.5428,2780.3,2779.6,1.1188]
[1738775082106,3.82648018,2780.1,2779.6,0.5416]
[1738775082299,3.82648018,2780.1,2779.7,3.21319229]
[1738775082506,3.82648018,2779.8,2779.7,0.00539229]
[1738775084404,4.35978018,2780.1,2779.7,0.00539229]
[1738775084601,0.00539229,2780.2,2779.9,3.2078]
[1738775085100,3.82648018,2781.3,2779.9,8.2078]
[1738775085306,3.82648018,2781.3,2780.7,3.2078]
[1738775085509,3.82648018,2781.3,2780.8,3.2078]
[1738775086213,3.83187247,2781.3,2781.1,3.2078]
[1738775086611,0.00539229,2781.3,2781.1,3.2078]
[1738775087014,3.83187247,2781.3,2781.1,3.2078]
[1738775087915,0.00539229,2781.3,2781.1,3.2078]
[1738775089105,3.83187247,2781.3,2781.1,3.2078]
[1738775089307,7.03967247,2781.3,2780.5,3.2078]
[1738775089616,3.82648018,2781.0,2780.5,3.2078]
[1738775090115,0.5721,2780.9,2780.5,3.2078]
[1738775090316,3.82648018,2780.7,2780.5,3.2078]
[1738775090511,3.82648018,2781.0,2780.5,3.2078]
[1738775090711,3.82648018,2781.0,2780.8,3.2078]
[1738775093516,0.5574,2780.9,2780.8,3.2078]
[1738775094815,1.1158,2780.9,2780.8,3.2078]
[1738775095417,6.1158,2780.9,2779.8,4.3243]
[1738775095719,3.2078,2780.2,2779.8,0.5444]
[1738775095908,3.82648018,2780.1,2779.7,0.00539229]
[1738775096108,4.95958018,2780.1,2779.7,0.00539229]
[1738775096718,3.82648018,2779.8,2779.7,0.00539229]
[1738775097218,12.03428018,2779.8,2779.0,3.2078]
[1738775097521,3.82648018,2779.1,2779.0,3.2078]
[1738775098323,0.00539229,2779.3,2779.0,3.2078]
[1738775099823,0.00539229,2779.3,2779.1,0.5339]
[1738775100721,0.00539229,2779.3,2779.0,3.2078]
[1738775100920,3.82648018,2779.1,2778.8,0.00539229]
[1738775102525,3.2078,2778.9,2777.9,3.2078]
[1738775102826,3.82648018,2778.0,2777.9,3.2078]
[1738775103721,8.82648018,2778.0,2776.9,3.2078]
[1738775103918,3.82648018,2777.3,2776.5,4.3297]
[1738775104320,3.82648018,2777.3,2776.7,3.2078]
[1738775104627,3.82648018,2776.9,2776.7,3.2078]
[1738775106023,3.82648018,2776.9,2776.5,0.58690793]
[1738775106218,0.00539229,2777.1,2776.5,0.58690793]
[1738775106219,0.00539229,2777.1,2776.7,3.2078]
[1738775106413,0.00539229,2777.1,2777.0,3.2078]
[1738775107519,0.00539229,2777.1,2776.5,0.58690793]
[1738775107720,4.18237484,2776.9,2776.5,0.58690793]
[1738775108325,0.00539229,2777.1,2776.7,3.2078]
[1738775109026,0.00539229,2777.1,2776.5,0.58690793]
[1738775109423,0.00539229,2777.1,2776.5,3.21140793]
[1738775109620,0.00539229,2777.1,2776.5,0.00360793]
[1738775109828,4.18237484,2776.9,2776.5,0.00360793]
[1738775110023,0.00539229,2777.1,2776.5,0.00360793]
[1738775110529,0.00539229,2777.1,2776.5,3.21140793]
[1738775110731,4.18237484,2776.9,2776.5,0.00360793]
[1738775110931,3.2078,2776.7,2776.5,0.00360793]
[1738775111229,3.2078,2776.7,2776.0,0.5652]
[1738775111427,4.18237484,2776.3,2776.0,0.5652]
[1738775111630,4.18237484,2776.3,2775.8,3.2078]
[1738775111828,4.18237484,2776.3,2775.4,0.583]
[1738775112134,1.1442,2776.2,2775.4,0.583]
[1738775112630,4.18237484,2776.3,2775.8,3.2078]
[1738775113231,8.97517484,2776.7,2775.8,3.2078]
[1738775113433,5.76737484,2776.7,2776.1,3.2078]
[1738775113631,5.76737484,2776.7,2776.2,40.8]
[1738775113827,3.7885,2777.0,2776.5,3.2078]
[1738775114028,4.18776713,2777.1,2776.5,3.2078]
[1738775114231,0.00539229,2777.1,2776.5,3.2078]
[1738775114836,4.18776713,2777.1,2776.5,3.2078]
[1738775115127,4.18776713,2777.1,2776.3,0.5787]
[1738775115333,4.18776713,2777.1,2776.5,3.2078]
[1738775115721,7.39556713,2777.1,2776.3,0.5787]
[1738775116126,4.18237484,2776.7,2776.0,3.2078]
[1738775116932,7.39017484,2776.7,2776.0,3.2078]
[1738775117127,4.18237484,2776.7,2776.0,3.2078]
[1738775117329,7.39017484,2776.7,2776.0,3.2078]
[1738775118324,4.18237484,2776.7,2776.0,3.2078]
[1738775119330,4.75797484,2776.7,2776.0,3.2078]
[1738775119525,4.18237484,2776.3,2776.0,3.2078]
[1738775121034,3.2078,2776.5,2776.0,3.2078]
[1738775121729,4.75797484,2776.7,2776.0,3.2078]
[1738775122340,4.18237484,2776.7,2776.0,3.2078]
[1738775123037,0.5715,2777.0,2776.3,3.2078]
[1738775123242,7.39556713,2777.1,2776.4,0.5713]
[1738775123435,0.00539229,2777.1,2776.6,3.2078]
[1738775123746,4.18237484,2778.3,2777.0,3.2078]
[1738775124038,4.18237484,2778.3,2777.6,3.2078]
[1738775124829,3.2078,2778.2,2777.1,0.5619]
[1738775125030,3.2078,2778.2,2777.0,3.2078]
[1738775125031,3.2078,2777.9,2777.7,0.0054021]
[1738775125236,6.34547484,2777.8,2776.5,3.2078]
[1738775125436,4.18237484,2777.3,2776.5,3.2078]
[1738775126632,4.18237484,2777.3,2776.9,3.2078]
[1738775126937,4.18237484,2777.3,2776.5,3.2078]
[1738775127147,4.18237484,2777.3,2776.8,3.2078]
[1738775128530,4.18777694,2778.2,2777.2,3.2078]
[1738775128736,4.18777694,2778.2,2776.9,1.1502]
[1738775128737,4.18777694,2778.2,2777.5,3.2078]
[1738775128932,4.18777694,2778.2,2777.6,0.5883]
[1738775129444,4.18777694,2778.2,2777.2,3.2078]
[1738775129635,4.18237484,2777.8,2777.2,3.2078]
[1738775130131,1.095,2777.7,2777.2,3.2078]
[1738775130334,3.2078,2777.6,2777.1,0.5883]
[1738775130533,4.18237484,2777.4,2776.8,3.2078]
[1738775130738,4.18237484,2777.0,2776.8,3.2078]
[1738775131336,4.18237484,2777.4,2776.8,3.2078]
[1738775131842,4.18237484,2777.0,2776.3,3.2078]
[1738775133837,4.18237484,2777.0,2776.6,3.2078]
[1738775136037,0.55,2777.6,2776.9,3.2078]
[1738775136245,4.18237484,2777.8,2777.2,3.2078]
[1738775136740,3.2078,2777.9,2777.3,0.5562]
[1738775136940,4.18777694,2778.2,2777.3,0.5562]
[1738775137243,0.5487,2778.1,2777.3,0.5562]
[1738775137449,4.18777694,2778.2,2777.8,3.2078]
[1738775137744,0.0054021,2778.2,2778.1,3.2078]
[1738775138147,3.2078,2779.3,2778.1,8.2078]
[1738775138343,3.2078,2779.3,2778.6,3.2078]
[1738775139138,1.584,2779.7,2778.2,1.2623]
[1738775139139,3.2078,2779.7,2778.9,3.2078]
[1738775139344,0.0054021,2779.2,2778.7,5.25330076]
[1738775139542,0.0054021,2779.2,2779.1,3.2078]
[1738775146153,0.0054021,2779.2,2778.8,3.2078]
[1738775146352,0.0054021,2779.2,2778.5,3.2078]
[1738775148355,4.18237484,2779.0,2778.5,3.2078]
[1738775152654,3.83085584,2778.6,2778.5,3.2078]
[1738775152851,3.83085584,2778.6,2778.2,3.2078]
[1738775153757,3.83085584,2778.6,2777.9,0.5871021]
[1738775153758,3.83085584,2778.6,2777.9,3.7949021]
[1738775154159,3.83085584,2778.6,2778.2,3.2078]
[1738775154661,4.17805453,2778.8,2778.2,3.2078]
[1738775156256,4.17805453,2778.8,2777.9,3.7949021]
[1738775156457,3.2078,2778.0,2777.9,0.0054021]
[1738775156857,3.2078,2778.0,2777.4,3.2078]
[1738775156858,3.2078,2778.0,2777.1,3.2078]
[1738775157166,4.17805453,2777.7,2777.1,3.2078]
[1738775157762,4.17805453,2778.1,2777.4,3.2078]
[1738775157957,4.17805453,2778.1,2777.5,3.2078]
[1738775158164,0.0054021,2778.0,2777.5,3.2078]
[1738775158460,3.2132021,2778.0,2777.2,3.2078]
[1738775158861,7.38585453,2777.7,2777.2,3.2078]
[1738775159561,4.17805453,2777.7,2777.2,3.2078]
[1738775161161,4.89790453,2777.7,2777.2,3.2078]
[1738775161355,4.17805453,2777.3,2777.2,3.2078]
[1738775162965,4.17805453,2777.7,2777.2,3.2078]
[1738775163165,0.0054021,2778.0,2777.2,3.2078]
[1738775163466,0.0054021,2778.0,2777.5,3.2078]
[1738775163665,0.0054021,2778.0,2777.3,0.5345]
[1738775163666,0.0054021,2778.0,2777.3,41.3345]
[1738775163868,0.0054021,2778.0,2777.5,3.2078]
[1738775164863,0.0054021,2778.0,2777.9,3.2078]
[1738775166468,0.0054021,2778.0,2777.9,8.2078]
[1738775166761,1.7121,2779.3,2777.9,8.2078]
[1738775166762,5.30885453,2779.3,2777.9,12.90308479]
[1738775166961,14.691,2782.4,2779.0,3.2078]
[1738775166962,4.17805453,2779.7,2779.0,3.2078]
[1738775167567,4.17805453,2779.3,2779.0,3.2078]
[1738775167768,4.17805453,2779.3,2778.6,0.5834]
[1738775167959,4.17805453,2778.9,2778.6,0.5834]
[1738775168164,4.17805453,2778.9,2778.2,3.2078]
[1738775168467,4.17805453,2778.9,2778.7,3.2132021]
[1738775170363,4.17805453,2778.9,2778.7,0.0054021]
[1738775171365,4.17805453,2778.9,2777.7,3.7506]
[1738775171564,4.17805453,2778.3,2777.7,3.7506]
[1738775172173,4.17805453,2778.3,2777.7,3.2078]
[1738775172370,0.5864,2778.2,2777.7,3.2078]
[1738775174368,3.2078,2777.8,2777.1,3.2078]
[1738775174671,0.5653,2778.1,2777.1,3.2078]
[1738775174871,0.0054021,2777.7,2777.1,3.2078]
[1738775175869,4.17805453,2777.5,2777.1,3.2078]
[1738775176273,4.17805453,2777.5,2776.9,3.2078]
[1738775178175,0.0054021,2777.7,2777.2,3.2078]
[1738775178368,0.0054021,2777.7,2777.6,3.2078]
[1738775178871,3.83196935,2778.5,2777.6,49.0078]
[1738775179066,3.83196935,2778.5,2778.0,3.2078]
[1738775179683,3.83196935,2778.5,2777.6,40.8]
[1738775179684,3.83196935,2778.5,2778.3,3.2078]
[1738775179871,4.96396935,2778.8,2778.3,3.2078]
[1738775180071,4.96396935,2778.8,2778.4,3.2078]
[1738775180072,0.0054021,2778.7,2778.4,3.2078]
[1738775180266,0.0054021,2778.7,2778.1,0.0054021]
[1738775180467,3.83196935,2778.5,2778.3,3.2078]
[1738775180667,0.0054021,2778.7,2778.3,3.2078]
[1738775181475,0.0054021,2778.7,2778.2,0.5742]
[1738775181673,0.0054021,2778.7,2778.3,3.2078]
[1738775182068,0.0054021,2778.7,2778.6,3.2078]
[1738775182277,4.17703796,2779.5,2778.6,3.2078]
[1738775182481,4.17703796,2779.5,2779.1,3.2078]
[1738775182673,4.17703796,2779.5,2779.4,3.2078]
[1738775182981,4.17703796,2779.9,2779.4,3.2078]
[1738775183776,4.18244006,2779.9,2779.4,3.2078]
[1738775184077,4.18244006,2779.9,2779.8,3.2078]
[1738775184581,4.18244006,2779.9,2779.6,0.0054021]
[1738775185873,0.0054021,2779.9,2779.8,3.2078]
[1738775186072,0.0054021,2779.9,2779.6,0.0054021]
[1738775187481,4.18244006,2779.9,2779.6,0.0054021]
[1738775188284,7.39024006,2779.9,2779.6,0.0054021]
[1738775188584,12.39024006,2779.9,2779.6,0.0054021]
[1738775189578,7.39024006,2779.9,2779.6,0.0054021]
[1738775190378,4.18244006,2779.9,2779.6,0.0054021]
[1738775191774,0.0054021,2779.9,2779.6,0.0054021]
[1738775191977,0.0054021,2779.9,2779.8,3.2078]
[1738775193588,4.18244006,2779.9,2779.8,3.2078]
[1738775194089,4.18244006,2779.9,2779.6,0.0054021]
[1738775194090,4.90173006,2779.9,2779.6,0.0054021]
[1738775194385,3.2078,2779.7,2779.6,0.0054021]
[1738775194590,4.18244006,2779.9,2779.6,0.0054021]
[1738775194885,3.2078,2779.7,2779.6,0.0054021]
[1738775195180,3.2078,2779.7,2778.7,3.2078]
[1738775195181,0.71939,2779.5,2778.7,3.2078]
[1738775195384,4.17703796,2778.9,2778.3,3.2078]
[1738775195578,4.17703796,2778.5,2778.0,3.2078]
[1738775195779,4.17703796,2778.5,2777.5,3.2078]
[1738775196379,0.0054021,2778.3,2777.8,3.2078]
[1738775199286,0.0054021,2778.3,2777.7,0.0054021]
[1738775199287,0.0054021,2778.3,2778.1,3.2078]
[1738775200386,4.17703796,2779.3,2778.1,8.92752]
[1738775200590,4.17703796,2779.3,2778.7,3.2078]
[1738775201685,4.18244006,2779.3,2778.7,3.2078]
[1738775202089,4.17703796,2778.9,2778.7,3.2078]
[1738775202292,4.17703796,2778.9,2778.2,3.2078]
[1738775202596,3.83073868,2778.7,2778.2,3.2078]
[1738775204194,3.83073868,2778.7,2777.8,0.575]
[1738775204195,3.83073868,2779.0,2778.3,3.2078]
[1738775204394,3.83073868,2778.7,2778.3,3.2078]
[1738775205493,3.83073868,2778.4,2778.3,3.2078]
[1738775205691,3.83073868,2778.4,2778.0,3.2078]
[1738775206501,3.83073868,2778.7,2778.0,3.2078]
[1738775206796,3.83073868,2778.7,2778.4,3.2078]
[1738775206992,3.83073868,2779.0,2778.4,3.2078]
[1738775207200,3.83614078,2779.3,2778.7,3.2078]
[1738775207402,3.83614078,2779.3,2779.0,3.2078]
[1738775207598,3.83614078,2779.3,2778.7,3.2078]
[1738775207999,3.83073868,2779.0,2778.7,3.2078]
[1738775208999,3.83073868,2779.0,2778.4,3.2078]
[1738775209200,3.83073868,2778.7,2778.4,3.2078]
[1738775209794,3.2078,2778.6,2777.7,0.0054021]
[1738775210010,3.83073868,2777.8,2777.7,0.0054021]
[1738775210602,8.83073868,2777.8,2776.9,3.2078]
[1738775210800,3.83073868,2777.0,2776.5,3.2078]
[1738775211001,3.83073868,2776.7,2776.5,3.2078]
[1738775211701,3.2078,2776.6,2776.3,0.0054021]
[1738775211906,7.66147736,2776.4,2775.4,41.3573]
[1738775212108,3.83073868,2775.5,2775.1,8.21108727]
[1738775212706,3.2078,2775.5,2775.1,8.21108727]
[1738775212906,4.18768491,2775.2,2775.1,8.21108727]
[1738775213102,4.18768491,2775.2,2774.9,14.15591637]
[1738775213306,4.18768491,2775.2,2774.3,3.2078]
[1738775213307,3.2078,2775.1,2774.3,3.2078]
[1738775213509,4.18768491,2774.8,2774.3,3.2078]
[1738775214001,4.18768491,2774.8,2773.9,3.2078]
[1738775214300,3.2078,2774.6,2773.9,3.2078]
[1738775214500,4.18768491,2774.4,2773.6,3.7605]
[1738775215108,4.18768491,2774.4,2773.6,0.5527]
[1738775215305,4.18768491,2774.4,2773.4,40.8]
[1738775215508,4.18768491,2774.4,2773.4,44.0078]
[1738775215813,4.18768491,2774.0,2773.4,44.0078]
[1738775216010,4.18768491,2774.0,2773.5,3.2078]
[1738775216715,4.19308701,2774.0,2773.5,3.2078]
[1738775216916,3.2078,2773.7,2773.1,3.2078]
[1738775217107,4.18768491,2773.6,2773.1,3.2078]
[1738775217310,3.2078,2773.4,2772.8,3.2078]
[1738775217808,4.18768491,2773.2,2772.8,3.2078]
[1738775218205,3.2078,2772.9,2772.5,41.3336]
[1738775218406,4.18768491,2772.8,2772.3,3.2078]
[1738775218607,4.18768491,2772.8,2771.9,3.2078]
[1738775218808,3.2078,2772.3,2771.9,3.2078]
[1738775219412,7.39548491,2772.0,2771.4,0.5697]
[1738775219610,7.39548491,2772.0,2771.2,3.2078]
[1738775220017,7.39548491,2771.6,2770.9,3.2078]
[1738775220711,4.18768491,2771.2,2770.9,3.2078]
[1738775221108,7.39548491,2771.6,2770.9,3.2078]
[1738775222222,4.18768491,2772.0,2771.4,3.2078]
[1738775222514,3.2078,2771.5,2770.7,3.2078]
[1738775222714,4.18768491,2771.2,2770.7,3.2078]
[1738775222917,4.18768491,2770.8,2770.1,3.2078]
[1738775223114,3.2078,2770.9,2770.1,3.2078]
[1738775223115,4.18768491,2770.4,2770.1,3.2078]
[1738775223524,4.18768491,2770.4,2769.7,3.2078]
[1738775224116,3.2078,2770.3,2769.7,3.2078]
[1738775226829,4.18768491,2770.0,2769.7,3.2078]
[1738775227013,3.2078,2769.8,2769.1,3.2078]
[1738775227222,4.18768491,2769.6,2769.1,3.2078]
[1738775228923,4.18768491,2769.2,2768.1,3.2078]
[1738775229122,1.58,2770.0,2767.8,3.2078]
[1738775229123,4.18768491,2768.3,2767.8,3.2078]
[1738775229320,4.18768491,2768.3,2767.9,3.2078]
[1738775229516,1.58,2768.8,2767.9,3.2078]
[1738775229517,4.18768491,2768.7,2767.9,3.2078]
[1738775229723,4.19309704,2768.3,2767.9,3.2078]
[1738775230122,3.2078,2768.0,2767.0,3.2078]
[1738775230429,3.2078,2767.1,2766.4,3.2078]
[1738775230630,4.18768491,2767.0,2766.4,3.2078]
[1738775230822,7.39548491,2767.0,2766.1,3.2078]
[1738775231126,4.18768491,2766.6,2766.1,3.2078]
[1738775231322,7.39548491,2767.0,2766.2,3.2078]
[1738775231731,4.19310702,2766.6,2766.2,3.2078]
[1738775232226,7.40090702,2766.6,2765.9,3.2078]
[1738775232420,0.00542211,2766.6,2766.2,3.2078]
[1738775232625,0.00542211,2766.6,2766.5,3.2078]
[1738775233127,0.00542211,2766.6,2766.5,8.2078]
[1738775233523,0.00542211,2766.6,2766.5,49.0078]